Cogmind - Beta 13 @@@ ROGUE MODE // 2024.04.05 @ 11:59:30 Player: Cyurio Result: Self-destructed Performance ------------- Evolutions (7) 3500 Regions Visited (17) 3400 Robots Destroyed (165) 825 Value Destroyed (6674) 6674 Prototype IDs (13) 260 Alien Tech Used (0) 0 Bonus (1091) 1091 TOTAL SCORE: 15750 Bonus ------- High Alert Combat Kills 231 Follower Combat Kills 60 Entered DSFs 500 Met Data Miner 300 Cogmind --------- Core Integrity 769/1300 Matter 278/300 Energy 12/100 System Corruption 2% Temperature Cool (0) Movement Core (200) Ox3 Location -3/Research Parts ------- > --- POWER (2) -------- (None) > --- PROPULSION (6) --- (None) > --- UTILITY (9) ------ Advanced Heat Sink Advanced Signal Interpreter Advanced Terrain Scan Processor Improved Target Analyzer Advanced Target Analyzer Advanced Actuator Array > --- WEAPON (4) ------- Vibroblade > --- INVENTORY (5) ---- Light Antimatter Reactor Particle Reactor Xenon Bombardment Thruster Small Storage Unit Improved Signal Interpreter Peak State ------------ > --- POWER ------------ Neutrino Core Light Antimatter Reactor > --- PROPULSION ------- Advanced Treads Medium Treads Heavy Treads Biometal Heavy Treads > --- UTILITY ---------- Small Storage Unit Advanced Signal Interpreter Advanced Terrain Scan Processor Improved Target Analyzer Advanced Target Analyzer Advanced Actuator Array Improved Cloaking Device Improved Medium Armor Plating Focal Shield > --- WEAPON ----------- KE Penetrator Railgun Vibroblade > --- INVENTORY -------- Light Antimatter Reactor Particle Reactor Light Treads Advanced Treads Xenon Bombardment Thruster Advanced Weight Redist. System Improved Signal Interpreter Advanced Particle Charger [Rating: 119] Favorites ----------- Power Light Antimatter Reactor Engine Light Ion Engine Power Core Light Nuclear Core Reactor Light Antimatter Reactor Propulsion Light Treads Treads Light Treads Leg Medium Armored Exoskeleton Wheel Wheel Flight Unit Xenon Bombardment Thruster Utility High-capacity Storage Unit Device Advanced Actuator Array Storage High-capacity Storage Unit Processor Transport Network Coupler Hackware Hacking Suite Protection Improved Medium Armor Plating Weapon Advanced Assault Cannon Energy Cannon Heavy Phase Cannon Ballistic Gun Gauss Rifle Ballistic Cannon Advanced Assault Cannon Launcher Grenade Launcher Slashing Weapon Vibroblade Build | -11 -10 -10 -10 -9 -8 -7 -7 -7 -6 -6 -6 -6 -5 -5 -5 -4 -3 ------- Run | Yrd Mat Min Exi Min Mat Fac Low Low Fac Low Low Dat Pro Fac DSF Fac Res Slots Evolved 14 | . . . . . 4 2 . . 2 . . . . 2 . 2 2 Power 1 | . . . . . . . . . 1 . . . . . . . . Propulsion 4 | . . . . . 2 . . . . . . . . . . 2 . Utility 7 | . . . . . 1 2 . . 1 . . . . 2 . . 1 Weapon 2 | . . . . . 1 . . . . . . . . . . . 1 Parts Attached 156 | . 7 . . . 34 32 2 9 19 2 2 . 7 3 2 27 10 Power 20 | . . . . . 4 2 1 1 4 . 1 . 1 1 . 3 2 Engine 6 | . . . . . 1 2 . 1 . . 1 . . 1 . . . Core 11 | . . . . . 3 . 1 . 4 . . . 1 . . 1 1 Reactor 3 | . . . . . . . . . . . . . . . . 2 1 Propulsion 45 | . 2 . . . 8 10 1 6 4 1 1 . 3 . 1 6 2 Treads 30 | . 2 . . . 7 9 1 4 . . . . . . . 5 2 Leg 3 | . . . . . . . . . 1 . . . . . 1 1 . Wheel 6 | . . . . . 1 1 . 2 2 . . . . . . . . Hover . | . . . . . . . . . . . . . . . . . . Flight 6 | . . . . . . . . . 1 1 1 . 3 . . . . Utility 42 | . 3 . . . 11 6 . . 2 1 . . 1 1 1 12 4 Device 15 | . . . . . 5 1 . . . 1 . . . . . 6 2 Storage 8 | . 1 . . . 3 . . . . . . . . . 1 2 1 Processor 10 | . . . . . 2 2 . . 2 . . . 1 1 . 1 1 Hackware 1 | . . . . . . 1 . . . . . . . . . . . Protection 8 | . 2 . . . 1 2 . . . . . . . . . 3 . Artifact . | . . . . . . . . . . . . . . . . . . Weapon 49 | . 2 . . . 11 14 . 2 9 . . . 2 1 . 6 2 Energy Gun . | . . . . . . . . . . . . . . . . . . Energy Cannon 2 | . . . . . . . . . . . . . . . . 2 . Ballistic Gun 31 | . 2 . . . 8 8 . . 5 . . . 2 1 . 3 2 Ballistic Cannon 12 | . . . . . 3 5 . 1 3 . . . . . . . . Launcher 3 | . . . . . . 1 . 1 1 . . . . . . . . Special Weapon . | . . . . . . . . . . . . . . . . . . Impact Weapon . | . . . . . . . . . . . . . . . . . . Slashing Weapon 1 | . . . . . . . . . . . . . . . . 1 . Piercing Weapon . | . . . . . . . . . . . . . . . . . . Special Melee Weapon . | . . . . . . . . . . . . . . . . . . Unidentified Prototypes 2 | . . . . . . 1 . . . . . . . . . 1 . Parts Lost 92 | . . . . . 18 16 1 6 19 1 . . 6 . . 6 19 Power 17 | . . . . . 3 2 1 1 4 . . . 2 . . 1 3 Propulsion 27 | . . . . . 5 5 . 5 4 . . . 2 . . . 6 Utility 21 | . . . . . 6 3 . . 2 1 . . . . . 3 6 Weapon 27 | . . . . . 4 6 . . 9 . . . 2 . . 2 4 Highest Loss Streak 12 | . . . . . 7 4 1 6 8 1 . . 5 . . 3 12 To Critical Strikes 1 | . . . . . . . . . . . . . . . . . 1 Average Slot Usage (%) 78 | . 98 100 100 100 83 79 99 86 73 5 5 13 38 23 29 69 73 Engine 4 | . 14 14 14 14 4 4 . 6 2 . 1 6 2 . . . . Core 2 | . . . . . 4 1 5 . 5 . . . 3 . . 1 2 Reactor 1 | . . . . . . . . . . . . . . . . 7 5 Treads 15 | . 28 28 28 28 21 13 30 15 5 . . . . . . 8 15 Wheel 2 | . . . . . 2 4 . 3 5 . . . . . . . . Device 5 | . . . . . 9 3 7 7 2 . . . . . . 8 12 Storage 7 | . 14 14 14 14 9 7 7 7 5 . . . . . . 5 4 Processor 8 | . . . . . 2 9 15 15 22 . . . 6 7 11 13 17 Hackware 2 | . . . . . . 6 7 7 5 . . . . . . . . Protection 4 | . 12 14 14 14 3 3 . . . . . . . . . 4 1 Ballistic Gun 13 | . 27 28 28 28 17 12 15 15 8 . . . 6 3 5 8 7 Ballistic Cannon 4 | . . . . . 8 8 7 6 7 . . . . . . . . Naked Turns 80 | . . . . . . . . . 7 28 45 . . . . . . Heaviest Build 73 | 11 29 29 29 29 61 72 64 63 66 2 4 4 11 6 11 73 62 Greatest Support 195 | 20 40 40 40 40 80 80 88 88 40 20 6 6 22 14 50 195 195 Greatest Overweight (x) 17 | . . . . . 3 17 . 2 16 . . . . . . . . Average Overweight (x) . | . . . . . 1 2 . 1 2 . . . . . . . . Largest Inventory Capacity 25 | . 15 15 15 15 20 20 20 20 20 5 5 5 5 5 8 25 10 Average Capacity 15 | . 14 15 15 15 18 20 20 20 19 5 5 5 5 5 6 8 8 Most Carried 20 | . 10 10 11 12 20 20 20 20 17 5 5 5 5 5 7 8 9 Average Carried 12 | . 7 10 10 11 16 17 19 17 13 5 5 5 5 5 5 5 8 Final Capacity 20 | 8 15 15 15 15 20 20 20 20 5 5 5 5 5 5 8 8 5 Final Carried 20 | 6 10 10 11 12 19 20 20 15 5 5 5 5 5 5 7 8 5 Class Distribution -------------------- 32% | Mutant 18% | Gunner 17% | Scavenger-Gunner 15% | Scavenger-Mutant 10% | Scavenger-Tank 4% | Tank Dominant Class ---------------- Mutant | -10/Materials Mutant | -10/Mines Mutant | -10/Exiles Mutant | -9/Mines Gunner | -8/Materials Gunner | -7/Factory Scavenger-Gunner | -7/Lower Caves Gunner | -7/Lower Caves Gunner | -6/Factory Mutant | -6/Lower Caves Mutant | -6/Lower Caves Mutant | -6/Data Miner Scavenger-Sprinter | -5/Proximity Caves Mutant | -5/Factory Mutant | -5/DSF Scavenger-Mutant | -4/Factory Scavenger-Mutant | -3/Research Resources | -11 -10 -10 -10 -9 -8 -7 -7 -7 -6 -6 -6 -6 -5 -5 -5 -4 -3 ----------- Run | Yrd Mat Min Exi Min Mat Fac Low Low Fac Low Low Dat Pro Fac DSF Fac Res Matter Collected 6086 | 200 396 . . . 1312 1390 479 233 715 40 36 . 89 . 2 753 441 Remotely 1478 | . . . . . 1040 438 . . . . . . . . . . . Salvage Created 7236 | . 545 . . . 1613 1395 527 247 449 . . . 28 . . 1049 1383 Parts 344 | . 29 . . . 87 70 19 15 27 . . . 4 . . 54 39 Haulers Intercepted 12 | . 2 . . . 5 3 . . . . . . . . . 1 1 Recyclers Shooed 5 | . . . . . 4 . . . . . . . . . . . 1 Parts Field Recycled . | . . . . . . . . . . . . . . . . . . Retrieved Matter . | . . . . . . . . . . . . . . . . . . Parts Self-Destructed 37 | . . . . . . . 19 14 . . . . 4 . . . . Prevented 2 | . . . . . . . . 2 . . . . . . . . . Kills | -11 -10 -10 -10 -9 -8 -7 -7 -7 -6 -6 -6 -6 -5 -5 -5 -4 -3 ------- Run | Yrd Mat Min Exi Min Mat Fac Low Low Fac Low Low Dat Pro Fac DSF Fac Res Combat Hostiles Destroyed 132 | . 5 . . . 32 34 11 8 14 . . . 1 . . 14 13 Melee 5 | . . . . . . . . . . . . . . . . 1 4 Guns 76 | . 5 . . . 23 14 7 2 2 . . . 1 . . 13 9 Cannons 37 | . . . . . 9 14 4 2 8 . . . . . . . . AOE 14 | . . . . . . 6 . 4 4 . . . . . . . . Classes Destroyed 15 | . 7 . . . 6 1 1 . . . . . . . . . . Worker 7 | . 2 . . . 2 . . . . . . . . . . . 3 Builder 5 | . 1 . . . 1 . . . 3 . . . . . . . . Hauler 12 | . 2 . . . 5 3 . . . . . . . . . 1 1 Recycler 6 | . 2 . . . 1 1 . . . . . . . . . . 2 Operator 1 | . 1 . . . . . . . . . . . . . . . . Watcher 2 | . 1 . . . 1 . . . . . . . . . . . . Swarmer 29 | . . . . . 7 9 2 4 6 . . . 1 . . . . Grunt 57 | . 5 . . . 13 14 4 3 4 . . . . . . 6 8 Brawler 4 | . . . . . 1 1 2 . . . . . . . . . . Duelist 3 | . . . . . . . 2 1 . . . . . . . . . Sentry 13 | . . . . . 6 3 1 . 1 . . . . . . 2 . Specialist 2 | . . . . . 2 . . . . . . . . . . . . Hunter 13 | . . . . . 2 3 . . 3 . . . . . . 2 3 Programmer 9 | . . . . . . 4 . . . . . . . . . 4 1 Heavy 2 | . . . . . 1 . . . . . . . . . . . 1 Best Kill Streak 7 | . 5 . . . 6 5 7 4 4 . . . 1 . . 4 4 Combat Bots Only 7 | . 3 . . . 4 4 7 4 4 . . . 1 . . 3 3 Max Kills in Single Turn 3 | . 2 . . . 1 3 2 2 3 . . . 1 . . 1 2 Gunslinging . | . . . . . . . . . . . . . . . . . . Exploded 3 | . . . . . . 2 . 2 3 . . . . . . . . Melee 1 | . . . . . . . . . . . . . . . . 1 1 Uniques/NPCs Destroyed . | . . . . . . . . . . . . . . . . . . Combat | -11 -10 -10 -10 -9 -8 -7 -7 -7 -6 -6 -6 -6 -5 -5 -5 -4 -3 -------- Run | Yrd Mat Min Exi Min Mat Fac Low Low Fac Low Low Dat Pro Fac DSF Fac Res Hostile Shots Fired 1228 | . 30 . . . 225 243 56 30 197 21 2 . 13 . 1 197 213 Missed 325 | . 8 . . . 77 59 11 6 54 13 . . 3 . . 49 45 Damage Taken 14709 | . 267 . . . 2372 2359 710 338 2056 83 18 . 486 . 85 2903 3032 Core 2589 | . 71 . . . 214 465 123 67 498 54 18 . 224 . . 324 531 Absorbed by Shields 549 | . . . . . 43 143 140 64 74 9 . . . . . 76 . Reduced by Siege Mode 59 | . . . . . . . . . . . . . . . . . 59 Redirected to Shielding 108 | . . . . . . . . . . . . . . . . 108 . Ignored by Resistances 391 | . . . . . . . . . . . . . . . . . 391 Core Remaining (%) 59 | 100 . . . 71 61 . . 6 . . . . 6 . 100 71 . Volleys Fired 415 | . 44 . . . 97 95 16 10 47 . . . 5 . . 47 54 Largest 3 | . 2 . . . 3 3 3 3 3 . . . 1 . . 3 2 Hottest 160 | . 40 . . . 97 124 104 104 124 . . . 23 . . 160 68 Shots Fired 983 | . 88 . . . 273 245 50 26 108 . . . 6 . . 103 84 Gun 703 | . 88 . . . 191 148 33 16 45 . . . 6 . . 92 84 Cannon 274 | . . . . . 82 95 17 8 61 . . . . . . 11 . Launcher 6 | . . . . . . 2 . 2 2 . . . . . . . . Special . | . . . . . . . . . . . . . . . . . . Kinetic 966 | . 88 . . . 273 243 50 24 106 . . . 6 . . 92 84 Thermal 11 | . . . . . . . . . . . . . . . . 11 . Explosive 6 | . . . . . . 2 . 2 2 . . . . . . . . Electromagnetic . | . . . . . . . . . . . . . . . . . . Robot Hit Streak 24 | . 6 . . . 24 12 13 6 13 . . . 3 . . 9 13 Robot Miss Streak 6 | . 3 . . . 5 4 1 1 5 . . . 3 . . 6 3 Penetration Max 2 | . . . . . . 1 1 . 1 . . . . . . 1 2 Secondary Targets 5 | . . . . . . . . . . . . . . . . 3 2 Max Gunslinging Chain 1 | . . . . . . . . . . . . . . . . 1 1 Shots Hit Robots 660 | . 50 . . . 167 166 29 17 73 . . . 3 . . 66 89 Core Hits 326 | . 24 . . . 64 68 19 16 48 . . . 2 . . 41 44 Critical Kills 6 | . . . . . . . . . . . . . . . . 2 4 Critical Parts Destroyed 7 | . . . . . 1 . 1 . . . . . . . . 3 2 Critical Strikes 30 | . . . . . 4 5 2 1 2 . . . . . . 5 11 Destroy 13 | . . . . . 1 . 1 . . . . . . . . 5 6 Blast 12 | . . . . . 3 5 1 1 2 . . . . . . . . Sever 5 | . . . . . . . . . . . . . . . . . 5 Melee Attacks 44 | . . . . . . . . . . . . . . . . 8 36 Impact . | . . . . . . . . . . . . . . . . . . Slashing 44 | . . . . . . . . . . . . . . . . 8 36 Piercing . | . . . . . . . . . . . . . . . . . . Sneak Attacks 2 | . . . . . . . . . . . . . . . . . 2 Combat Hostiles . | . . . . . . . . . . . . . . . . . . Follow-up Attacks . | . . . . . . . . . . . . . . . . . . Damage Inflicted 15917 | . 607 . . 9 3194 4173 755 531 1841 . . . 40 . . 1642 3125 Guns 9149 | . 563 . . . 2207 1974 474 211 731 . . . 40 . . 1258 1691 Cannons 3846 | . . . . . 938 1449 281 130 882 . . . . . . 166 . Explosions 1159 | . . . . . . 741 . 190 228 . . . . . . . . Melee 1652 | . . . . . . . . . . . . . . . . 218 1434 Ramming 111 | . 44 . . 9 49 9 . . . . . . . . . . . Kinetic 12829 | . 563 . . . 3145 3423 755 341 1613 . . . 40 . . 1258 1691 Thermal 736 | . . . . . . 570 . . . . . . . . . 166 . Explosive 589 | . . . . . . 171 . 190 228 . . . . . . . . Electromagnetic . | . . . . . . . . . . . . . . . . . . Impact . | . . . . . . . . . . . . . . . . . . Slashing 1652 | . . . . . . . . . . . . . . . . 218 1434 Piercing . | . . . . . . . . . . . . . . . . . . Highest Corruption 9 | . . . . . . 9 9 9 7 7 7 7 7 . . 3 2 Average Corruption 4 | . . . . . . 4 9 9 5 7 7 7 7 . . 2 1 Corruption Purged . | . . . . . . . . . . . . . . . . . . Corruption Blocked . | . . . . . . . . . . . . . . . . . . Effects 114 | . . . . . . 47 17 3 12 5 4 1 4 . . 16 5 Message Errors 30 | . . . . . . 15 3 1 2 1 1 . . . . 4 3 Matter Fused 24 | . . . . . . 8 6 1 2 2 1 . . . . 4 . Heat Flow Errors 12 | . . . . . . 3 2 . 2 1 2 . 2 . . . . Energy Discharges 15 | . . . . . . 3 2 . 4 1 . 1 1 . . 3 . Parts Fused 1 | . . . . . . 1 . . . . . . . . . . . Data Loss (minor) 17 | . . . . . . 11 1 1 . . . . . . . 3 1 Data Loss (major) 4 | . . . . . . 2 1 . . . . . . . . 1 . Misfires 6 | . . . . . . 2 2 . 1 . . . 1 . . . . Alerts 1 | . . . . . . 1 . . . . . . . . . . . Weapon Failures 4 | . . . . . . 1 . . 1 . . . . . . 1 1 Overload Shots . | . . . . . . . . . . . . . . . . . . Overflow Damage 311 | . . . . . . 130 . . 47 . . . . . . 1 133 Projectiles 52 | . . . . . . 5 . . 47 . . . . . . . . Explosions 125 | . . . . . . 125 . . . . . . . . . . . Melee 134 | . . . . . . . . . . . . . . . . 1 133 Knockbacks 48 | . 1 . . . 14 16 1 2 14 . . . . . . . . Impact 1 | . 1 . . . . . . . . . . . . . . . . Kinetic 45 | . . . . . 12 16 1 2 14 . . . . . . . . Secondary 2 | . . . . . 2 . . . . . . . . . . . . Self-Inflicted Damage 34 | . . . . . 3 4 . . 27 . . . . . . . . Shots 1 | . . . . . . . . . 1 . . . . . . . . Rammed 12 | . 5 . . 1 5 1 . . . . . . . . . . . Targets Rammed 14 | . 7 . . 1 5 1 . . . . . . . . . . . Kicked . | . . . . . . . . . . . . . . . . . . Crushed 2 | . 2 . . . . . . . . . . . . . . . . Highest Temperature 590 | . 37 . . . 447 331 250 178 249 105 224 . 271 . . 590 47 Average Temperature 88 | . 9 . . . 79 99 75 101 86 60 105 . 138 . . 155 19 Received Heat Transfer 2927 | . 150 . . . 657 511 107 141 483 12 . . . . . 401 465 Effects 26 | . . . . . 4 3 1 . . . . . . . . 18 . Shutdowns 7 | . . . . . 1 . . . . . . . . . . 6 . Energy Bleed 3 | . . . . . . 1 . . . . . . . . . 2 . Interference 6 | . . . . . 2 . 1 . . . . . . . . 3 . Short Circuit 3 | . . . . . . 2 . . . . . . . . . 1 . Damage (minor) 4 | . . . . . 1 . . . . . . . . . . 3 . Damage (major) 2 | . . . . . . . . . . . . . . . . 2 . Damage (core) 1 | . . . . . . . . . . . . . . . . 1 . Siege Activations 1 | . . . . . . . . . . . . . . . . . 1 Total Turns 44 | . . . . . . . . . . . . . . . . . 44 Longest Duration 44 | . . . . . . . . . . . . . . . . . 44 Robots Corrupted . | . . . . . . . . . . . . . . . . . . Combat Hostiles . | . . . . . . . . . . . . . . . . . . Parts Fried . | . . . . . . . . . . . . . . . . . . Impact Corruptions . | . . . . . . . . . . . . . . . . . . Robots Melted . | . . . . . . . . . . . . . . . . . . Combat Hostiles . | . . . . . . . . . . . . . . . . . . Parts Melted 1 | . . . . . . . . . . . . . . . . 1 . Heat Transferred 498 | . . . . . . 350 . . . . . . . . . 148 . Parts Sabotaged 4 | . . . . . . . . . 4 . . . . . . . . Parts Stolen 2 | . . . . . . . . . . 1 1 . . . . . . Parts Stripped . | . . . . . . . . . . . . . . . . . . Power Chain Reactions . | . . . . . . . . . . . . . . . . . . Alert | -11 -10 -10 -10 -9 -8 -7 -7 -7 -6 -6 -6 -6 -5 -5 -5 -4 -3 ------- Run | Yrd Mat Min Exi Min Mat Fac Low Low Fac Low Low Dat Pro Fac DSF Fac Res Peak Influence 678 | . 146 . . . 515 678 . . 508 . . . . 40 28 203 226 Initial 276 | . . . . . . 230 . . 276 . . . . 25 28 14 39 Average 214 | . 72 . . . 264 327 . . 369 . . . . 35 28 48 111 Maximum Alert Level 2 | . . . . . 2 2 . . 2 . . . . . . 1 1 Low Security (%) 51 | . 100 100 . 100 40 14 . . . . . . . 100 100 99 87 Level 1 33 | . . . . . 34 64 . . 56 . . . . . . . 12 Level 2 15 | . . . . . 25 21 . . 43 . . . . . . . . Level 3 . | . . . . . . . . . . . . . . . . . . Level 4 . | . . . . . . . . . . . . . . . . . . Level 5 . | . . . . . . . . . . . . . . . . . . High Security . | . . . . . . . . . . . . . . . . . . Max Security . | . . . . . . . . . . . . . . . . . . Squads Dispatched 39 | . 4 . . . 6 14 . . 5 . . . . . . 6 4 Investigation 7 | . 1 . . . . 4 . . . . . . . . . 2 . Extermination 8 | . . . . . . 4 . . 1 . . . . . . 3 . Reinforcement 18 | . 3 . . . 6 3 . . 1 . . . . . . 1 4 Assault 1 | . . . . . . . . . 1 . . . . . . . . Garrison 5 | . . . . . . 3 . . 2 . . . . . . . . Intercept . | . . . . . . . . . . . . . . . . . . Searches Triggered . | . . . . . . . . . . . . . . . . . . Construction Impeded 1 | . . . . . . . . . 1 . . . . . . . . Haulers Reinforced 4 | . . . . . . 1 . . . . . . . . . 1 2 Active Scanning Responses . | . . . . . . . . . . . . . . . . . . Cargo Convoy Interrupts . | . . . . . . . . . . . . . . . . . . Stealth | -11 -10 -10 -10 -9 -8 -7 -7 -7 -6 -6 -6 -6 -5 -5 -5 -4 -3 --------- Run | Yrd Mat Min Exi Min Mat Fac Low Low Fac Low Low Dat Pro Fac DSF Fac Res Distress Signals 9 | . . . . . 3 1 . . 1 . . . 2 . . . 2 Communications Jammed . | . . . . . . . . . . . . . . . . . . Distress Signals . | . . . . . . . . . . . . . . . . . . Times Spotted 196 | . 15 . . . 46 41 11 8 23 4 1 . 8 . . 17 22 Peak Tracking Total 7 | . 4 . . . 6 5 7 4 5 3 1 . 4 . 1 3 5 Tactical Retreats 5 | . . . . . 2 . . . . 3 . . . . . . . Traps | -11 -10 -10 -10 -9 -8 -7 -7 -7 -6 -6 -6 -6 -5 -5 -5 -4 -3 ------- Run | Yrd Mat Min Exi Min Mat Fac Low Low Fac Low Low Dat Pro Fac DSF Fac Res Traps Triggered 4 | . 2 . . . . . . . 1 . . . 1 . . . . Indirectly . | . . . . . . . . . . . . . . . . . . Trap Hack Attempts . | . . . . . . . . . . . . . . . . . . Triggered . | . . . . . . . . . . . . . . . . . . Disarmed . | . . . . . . . . . . . . . . . . . . Reprogrammed . | . . . . . . . . . . . . . . . . . . Reused . | . . . . . . . . . . . . . . . . . . Traps Extracted . | . . . . . . . . . . . . . . . . . . Installed . | . . . . . . . . . . . . . . . . . . Triggered 1 | . . . . . . . . 1 . . . . . . . . . Machines | -11 -10 -10 -10 -9 -8 -7 -7 -7 -6 -6 -6 -6 -5 -5 -5 -4 -3 ---------- Run | Yrd Mat Min Exi Min Mat Fac Low Low Fac Low Low Dat Pro Fac DSF Fac Res Machines Disabled 20 | . . . . . 1 13 1 . . . . . . . . 4 1 Max in Single Turn 10 | . . . . . 1 10 1 . . . . . . . . 1 1 Machines Repaired . | . . . . . . . . . . . . . . . . . . Machines Dismantled . | . . . . . . . . . . . . . . . . . . Machines Sabotaged . | . . . . . . . . . . . . . . . . . . Overloaded Fab Kills . | . . . . . . . . . . . . . . . . . . Hacking | -11 -10 -10 -10 -9 -8 -7 -7 -7 -6 -6 -6 -6 -5 -5 -5 -4 -3 --------- Run | Yrd Mat Min Exi Min Mat Fac Low Low Fac Low Low Dat Pro Fac DSF Fac Res Machines Accessed 22 | . 2 . . . 1 7 . . 1 . . 4 . 4 . 3 . Terminals 11 | . 2 . . . 1 3 . . 1 . . . . 3 . 1 . Fabricators 4 | . . . . . . 2 . . . . . . . . . 2 . Repair Stations . | . . . . . . . . . . . . . . . . . . Recycling Units . | . . . . . . . . . . . . . . . . . . Scanalyzers 1 | . . . . . . 1 . . . . . . . . . . . Garrison Access 2 | . . . . . . 1 . . . . . . . 1 . . . Total Hacks 69 | . 3 . . . 4 16 . . 2 . . 29 . 9 . 6 . Successful 42 | . . . . . 2 3 . . 1 . . 29 . 1 . 6 . Failed 27 | . 3 . . . 2 13 . . 1 . . . . 8 . . . Catastrophic 8 | . 1 . . . . 5 . . . . . . . 2 . . . Database Lockouts . | . . . . . . . . . . . . . . . . . . Manual 15 | . 3 . . . . 6 . . . . . . . 6 . . . Terminals 24 | . 3 . . . 4 7 . . 2 . . . . 7 . 1 . Fabricators 9 | . . . . . . 4 . . . . . . . . . 5 . Repair Stations . | . . . . . . . . . . . . . . . . . . Recycling Units . | . . . . . . . . . . . . . . . . . . Scanalyzers 3 | . . . . . . 3 . . . . . . . . . . . Garrison Access 4 | . . . . . . 2 . . . . . . . 2 . . . Terminal Hacks 34 | . . . . . 2 . . . 1 . . 29 . 1 . 1 . Record 12 | . . . . . 1 . . . . . . 11 . . . . . Part Schematic 11 | . . . . . . . . . . . . 11 . . . . . Robot Schematic 4 | . . . . . . . . . . . . 4 . . . . . Prototype ID Bank 3 | . . . . . . . . . . . . 3 . . . . . Open Door 1 | . . . . . . . . . . . . . . . . 1 . Open DSF 1 | . . . . . . . . . . . . . . 1 . . . Branch Access Points 1 | . . . . . . . . . 1 . . . . . . . . Alert Level 1 | . . . . . 1 . . . . . . . . . . . . Fabricator Hacks 6 | . . . . . . 1 . . . . . . . . . 5 . Load Schematic 3 | . . . . . . 1 . . . . . . . . . 2 . Build 3 | . . . . . . . . . . . . . . . . 3 . Repair Station Hacks . | . . . . . . . . . . . . . . . . . . Recycling Unit Hacks . | . . . . . . . . . . . . . . . . . . Scanalyzer 2 | . . . . . . 2 . . . . . . . . . . . Insert Component 1 | . . . . . . 1 . . . . . . . . . . . Analyze 1 | . . . . . . 1 . . . . . . . . . . . Garrison Access Hacks . | . . . . . . . . . . . . . . . . . . Unauthorized Hacks . | . . . . . . . . . . . . . . . . . . Terminals . | . . . . . . . . . . . . . . . . . . Fabricators . | . . . . . . . . . . . . . . . . . . Repair Stations . | . . . . . . . . . . . . . . . . . . Recycling Units . | . . . . . . . . . . . . . . . . . . Scanalyzers . | . . . . . . . . . . . . . . . . . . Garrison Access . | . . . . . . . . . . . . . . . . . . Data Cores Recovered . | . . . . . . . . . . . . . . . . . . Used . | . . . . . . . . . . . . . . . . . . Hacking Detections 16 | . 2 . . . 1 7 . . 1 . . . . 3 . 2 . Full Trace Events 6 | . . . . . . 4 . . . . . . . . . 2 . Feedback Events 1 | . . . . . . 1 . . . . . . . . . . . Corruption 1 | . . . . . . 1 . . . . . . . . . . . Feedback Blocked . | . . . . . . . . . . . . . . . . . . Robot Schematics Acquired 4 | . . . . . . . . . . . . 4 . . . . . Robots Built . | . . . . . . . . . . . . . . . . . . Authchips . | . . . . . . . . . . . . . . . . . . Time . | . . . . . . . . . . . . . . . . . . Total Robot Build Rating . | . . . . . . . . . . . . . . . . . . Part Schematics Acquired 12 | . . . . . . 1 . . . . . 11 . . . . . Parts Built 3 | . . . . . . . . . . . . . . . . 3 . Authchips . | . . . . . . . . . . . . . . . . . . Time 329 | . . . . . . . . . . . . . . . . 329 . Total Part Build Rating 15 | . . . . . . . . . . . . . . . . 15 . Parts Repaired . | . . . . . . . . . . . . . . . . . . Time . | . . . . . . . . . . . . . . . . . . Parts Recycled . | . . . . . . . . . . . . . . . . . . Recycled Matter . | . . . . . . . . . . . . . . . . . . Retrieved Matter . | . . . . . . . . . . . . . . . . . . Retrieved Components . | . . . . . . . . . . . . . . . . . . Parts Scanalyzed 1 | . . . . . . 1 . . . . . . . . . . . Part Schematics Acquired 1 | . . . . . . 1 . . . . . . . . . . . Parts Damaged . | . . . . . . . . . . . . . . . . . . Bothacking | -11 -10 -10 -10 -9 -8 -7 -7 -7 -6 -6 -6 -6 -5 -5 -5 -4 -3 ------------ Run | Yrd Mat Min Exi Min Mat Fac Low Low Fac Low Low Dat Pro Fac DSF Fac Res Used RIF Installer . | . . . . . . . . . . . . . . . . . . Robots Hacked . | . . . . . . . . . . . . . . . . . . Non-combat . | . . . . . . . . . . . . . . . . . . Combat . | . . . . . . . . . . . . . . . . . . Robot Hacks Applied . | . . . . . . . . . . . . . . . . . . Relay Couplers Released . | . . . . . . . . . . . . . . . . . . Fabnet Peak Effective % . | . . . . . . . . . . . . . . . . . . Robots Rewired 2 | . . . . . . . 2 . . . . . . . . . . Allies Hacked . | . . . . . . . . . . . . . . . . . . Hacks Repelled . | . . . . . . . . . . . . . . . . . . Allies | -11 -10 -10 -10 -9 -8 -7 -7 -7 -6 -6 -6 -6 -5 -5 -5 -4 -3 -------- Run | Yrd Mat Min Exi Min Mat Fac Low Low Fac Low Low Dat Pro Fac DSF Fac Res Total Allies 3 | . . . . . . . 2 . . . . . 1 . . . . Largest Group 2 | . . . . . . . 2 . . . . . 1 . . . . Highest-Rated Group 96 | . . . . . . . 48 . . . . . 96 . . . . Highest-Rated Ally 96 | . . . . . . . 32 . . . . . 96 . . . . Total Orders . | . . . . . . . . . . . . . . . . . . Ally Attacks 10 | . . . . . . . 3 . . . . . 7 . . . . Total Damage 412 | . . . . . . . 60 . . . . . 352 . . . . Kills 3 | . . . . . . . . . . . . . 3 . . . . Allies Corrupted . | . . . . . . . . . . . . . . . . . . Allies Melted . | . . . . . . . . . . . . . . . . . . Intel | -11 -10 -10 -10 -9 -8 -7 -7 -7 -6 -6 -6 -6 -5 -5 -5 -4 -3 ------- Run | Yrd Mat Min Exi Min Mat Fac Low Low Fac Low Low Dat Pro Fac DSF Fac Res Robot Analysis Total . | . . . . . . . . . . . . . . . . . . Derelict Logs Recovered 8 | . . . . 1 . . 2 . . 1 2 . 2 . . . . Drone Launches . | . . . . . . . . . . . . . . . . . . Drone Recoveries . | . . . . . . . . . . . . . . . . . . Exploration | -11 -10 -10 -10 -9 -8 -7 -7 -7 -6 -6 -6 -6 -5 -5 -5 -4 -3 ------------- Run | Yrd Mat Min Exi Min Mat Fac Low Low Fac Low Low Dat Pro Fac DSF Fac Res Turns Passed 8473 | . 813 77 226 41 1320 2451 605 93 509 147 117 31 158 74 26 1260 525 Spaces Moved 4808 | 1 396 49 141 25 548 1121 326 33 238 325 262 78 342 156 40 581 146 Core 162 | . . . . . . 8 . . 16 50 88 . . . . . . Treads 2283 | . 396 49 141 25 362 557 326 6 3 . . . . . . 272 146 Legs 327 | 1 . . . . . . . . 5 6 . . . . 6 309 . Wheels 983 | . . . . . 186 556 . 27 214 . . . . . . . . Hover . | . . . . . . . . . . . . . . . . . . Flight 1053 | . . . . . . . . . . 269 174 78 342 156 34 . . Fastest Speed 32 | 120 160 160 160 160 145 140 160 130 50 40 40 40 32 44 44 140 150 Average Speed 129 | 120 160 160 160 160 154 171 160 135 134 43 43 40 38 44 58 143 151 Slowest Speed 900 | 120 160 160 160 160 160 900 160 160 850 130 50 40 44 44 140 152 152 Overloaded Moves . | . . . . . . . . . . . . . . . . . . Propulsion Burnouts . | . . . . . . . . . . . . . . . . . . Robots Hopped 4 | . . . . . . . . . . . 1 . 2 1 . . . Cave-ins Triggered . | . . . . . . . . . . . . . . . . . . Exploration Rate (%) 33 | 2 55 19 49 7 71 34 50 9 9 56 47 68 56 5 43 11 3 Regions Visited 17 Branch Regions 9 Pre-discovered Areas 2 | . . . . . . . . . . . . 1 1 . . . . Known Exits Taken 4 | . . . . . . . . . 1 . . . 1 1 . 1 . Unknown Exits Taken 12 | 1 1 1 1 1 1 1 1 1 . 1 1 1 . . . . . Scrap Searched 7 | . . . . . . . 1 . . 2 2 . 2 . . . . Spaces Dug 2 | . . . . . . . . . . . . . . . . 2 . Terrain Destroyed 133 | . . . . . 25 50 3 4 25 . . . . . . 22 4 Melee 2 | . . . . . . . . . . . . . . . . 2 . Projectile 85 | . . . . . 25 18 3 2 13 . . . . . . 20 4 AOE 46 | . . . . . . 32 . 2 12 . . . . . . . . Terrain Rammed . | . . . . . . . . . . . . . . . . . . Walls Destroyed . | . . . . . . . . . . . . . . . . . . Machines Disabled . | . . . . . . . . . . . . . . . . . . Actions | -11 -10 -10 -10 -9 -8 -7 -7 -7 -6 -6 -6 -6 -5 -5 -5 -4 -3 --------- Run | Yrd Mat Min Exi Min Mat Fac Low Low Fac Low Low Dat Pro Fac DSF Fac Res Total 6167 | . 491 48 141 26 806 1455 373 61 337 329 262 77 359 158 43 893 308 Wait 638 | . 28 . . . 103 179 18 7 25 3 . . . . . 217 58 Move 4783 | . 395 48 140 24 547 1120 325 32 237 324 259 77 337 153 39 580 146 Hop 4 | . . . . . . . . . . . 1 . 2 1 . . . Pick Up 52 | . 6 . 1 1 12 15 . 1 8 . . . . . 1 5 2 Fast Attach 71 | . 3 . . . 12 12 . . 5 2 2 . 7 3 1 17 7 Attach 52 | . . . . . 10 12 1 7 12 . . . . . 1 7 2 Detach 13 | . . . . . 2 3 . 2 . . . . . . . 5 1 Swap 33 | . 4 . . . 12 8 1 2 2 . . . . . . 3 1 Drop 28 | . 4 . . . 6 10 . . 1 . . . . 1 1 4 1 Fire 415 | . 44 . . . 97 95 16 10 47 . . . 5 . . 47 54 Melee 44 | . . . . . . . . . . . . . . . . 8 36 Ram 2 | . . . . . 1 1 . . . . . . . . . . . Kick . | . . . . . . . . . . . . . . . . . . Crush 12 | . 7 . . 1 4 . . . . . . . . . . . . Escape Stasis 8 | . . . . . . . . . . . . . 8 . . . . Rewire 12 | . . . . . . . 12 . . . . . . . . . . Trap . | . . . . . . . . . . . . . . . . . . Miscellaneous . | . . . . . . . . . . . . . . . . . . Route ------- -11/Scrapyard -10/Materials (discovered 3 exits: [*Mat x2] / [*Min]) -10/Mines -10/Exiles (discovered 2 exits: [*Min x2]) -9/Mines -8/Materials -7/Factory (discovered 2 exits: *Fac / [*Low]) -7/Lower Caves -7/Lower Caves -6/Factory (discovered 2 exits: *Low x2) -6/Lower Caves -6/Lower Caves -6/Data Miner -5/Proximity Caves -5/Factory (discovered 3 exits: Fac x2 / DSF) -5/DSF -4/Factory (discovered 2 exits: *Res / *Ext) -3/Research History --------- Turn | Location | Event 1 | -11/Scrapyard | Discovered new exit (range 0) 1 | -11/Scrapyard | Entered Materials 310 | -10/Materials | Build established: Mutant 311 | -10/Materials | Discovered new exit (range 16) 489 | -10/Materials | Discovered new exit (range 9) 738 | -10/Materials | Discovered new exit (range 13) 814 | -10/Materials | Entered Mines 883 | -10/Mines | Deemed a non-threat by the Exiles lab entrance 885 | -10/Mines | Discovered new exit (range 5) 891 | -10/Mines | Entered Exiles 891 | -10/Exiles | Found Exiles lab abandoned 916 | -10/Exiles | Discovered new exit (range 15) 1099 | -10/Exiles | Discovered new exit (range 14) 1117 | -10/Exiles | Entered Mines 1118 | -9/Mines | YI-UF0 nonchalantly dropped a Grenade Launcher on the ground 1119 | -9/Mines | Met a Derelict bent on vengeance 1136 | -9/Mines | Learned Materials non-interactive machine intel 1147 | -9/Mines | Discovered new exit (range 8) 1158 | -9/Mines | Entered Materials 1158 | -8/Materials | Evolved 4 slots: Propulsion x2, Utility x1, Weapon x1 1159 | -8/Materials | Loaded intel: 27 non-interactive machine locations 1805 | -8/Materials | Build established: Scavenger-Tank 2086 | -8/Materials | Lost 7 parts (3n2u2w) 2302 | -8/Materials | Build established: Gunner 2451 | -8/Materials | Discovered new exit (range 16) 2478 | -8/Materials | Entered Factory 2478 | -7/Factory | Evolved 2 slots: Utility x2 2901 | -7/Factory | Build established: Scavenger-Gunner 3000 | -7/Factory | Lost 4 parts (3n1w) 3018 | -7/Factory | Garrison activated, responded to threat 3077 | -7/Factory | Lost 3 parts (1p1n1w) 3155 | -7/Factory | Lost 3 parts (1u2w) 3321 | -7/Factory | Build established: Mutant 3861 | -7/Factory | Build established: Gunner 3931 | -7/Factory | Discovered new exit (range 10) 4138 | -7/Factory | Core integrity fell below 50% 4192 | -7/Factory | Lost 3 parts (1p1n1u) 4448 | -7/Factory | Build established: Scavenger-Tank 4890 | -7/Factory | Build established: Scavenger-Gunner 4912 | -7/Factory | Discovered new exit (range 5) 4929 | -7/Factory | Entered Lower Caves 5002 | -7/Lower Caves | Attracted the attention of an 0b10 outpost 5035 | -7/Lower Caves | Core integrity fell below 20% 5064 | -7/Lower Caves | Destroyed 7 combat bots 5259 | -7/Lower Caves | Learned Factory security intel 5510 | -7/Lower Caves | Learned location of 1 exit from Factory 5516 | -7/Lower Caves | Discovered new exit (range 11) 5534 | -7/Lower Caves | Entered another Lower Caves area 5603 | -7/Lower Caves | Lost 6 parts (1p5n) 5620 | -7/Lower Caves | Discovered new exit (range 5) 5627 | -7/Lower Caves | Entered Factory 5627 | -6/Factory | Evolved 2 slots: Power x1, Utility x1 5628 | -6/Factory | Identified exit to Lower Caves 5887 | -6/Factory | Lost 7 parts (1p2n1u3w) 5977 | -6/Factory | First assault squad dispatched 5986 | -6/Factory | Garrison activated, responded to threat 6052 | -6/Factory | Lost 8 parts (2p1n5w) 6122 | -6/Factory | Released all parts (5) 6128 | -6/Factory | Core integrity fell below 50% 6136 | -6/Factory | Entered Lower Caves 6152 | -6/Lower Caves | Lost 4 parts (1p1n1u1w) 6181 | -6/Lower Caves | Encountered a Warlord checkpoint 6196 | -6/Lower Caves | Attracted the attention of an 0b10 checkpoint 6280 | -6/Lower Caves | Learned Factory stockpile data 6280 | -6/Lower Caves | Discovered new exit (range 5) 6283 | -6/Lower Caves | Entered another Lower Caves area 6299 | -6/Lower Caves | Learned location of 1 exit from Factory 6395 | -6/Lower Caves | Discovered new exit (range 14) 6398 | -6/Lower Caves | Build established: Mutant 6400 | -6/Lower Caves | Entered Data Miner 6400 | -6/Data Miner | Discovered new exit (range 6) 6408 | -6/Data Miner | Met Data Miner 6416 | -6/Data Miner | Learned location of Section 7 (-2) 6416 | -6/Data Miner | Acquired the access code to Warlord's prototype stash 6422 | -6/Data Miner | Received God Mode back door access code from Data Miner 6431 | -6/Data Miner | Entered Proximity Caves 6462 | -5/Proximity Caves | Learned location of 1 exit from Factory 6494 | -5/Proximity Caves | Escorted by Enhanced Grunt 6581 | -5/Proximity Caves | Core integrity fell below 20% 6584 | -5/Proximity Caves | Discovered new exit (range 14) 6589 | -5/Proximity Caves | Identified exit to Factory 6589 | -5/Proximity Caves | Entered Factory 6589 | -5/Factory | Evolved 2 slots: Utility x2 6590 | -5/Factory | Identified exit to Factory 6615 | -5/Factory | Lost 5 parts (1p2n2w) 6662 | -5/Factory | Identified exit to DSF 6663 | -5/Factory | Entered DSF 6676 | -5/DSF | Discovered exit to Factory (range 11) 6689 | -5/DSF | Entered Factory 6689 | -4/Factory | Evolved 2 slots: Propulsion x2 6776 | -4/Factory | Discovered new exit (range 9) 6788 | -4/Factory | Identified exit to Research 6806 | -4/Factory | Found Powered Armor 7016 | -4/Factory | Fabricated Adv. Thermal Shield? 7276 | -4/Factory | Fabricated Biometal Heavy Treads (x1) 7361 | -4/Factory | Fabricated Adv. Treads? 7428 | -4/Factory | Lost 3 parts (2u1w) 7469 | -4/Factory | Found Prototype Slashing Weapon 7469 | -4/Factory | Identified Vibroblade 7645 | -4/Factory | Discovered new exit (range 6) 7653 | -4/Factory | Identified exit to Extension 7823 | -4/Factory | Build established: Scavenger-Mutant 7949 | -4/Factory | Entered Research 7949 | -3/Research | Evolved 2 slots: Utility x1, Weapon x1 8241 | -3/Research | Lost 6 parts (2n2u2w) 8474 | -3/Research | Self-destructed Last Messages --------------- 08461_ Slug penetrates Wall. 08464_ ALERT: Suspicious intruders detected, dispatching Specialist reinforcements to area. 08464_ Penetrated by Slug. 08467_ H-77 Assassin Coil Gun severed. 08467_ Penetrated by Slug. 08467_ U-05 Engineer destroyed. 08469_ Focal Shield destroyed. 08469_ Med. Treads destroyed. 08471_ Penetrated by Slug. 08471_ Slug penetrates H-71 Marshal. 08473_ Penetrated by Slug. 08473_ Med. Storage Unit destroyed. 08473_ Adv. Weight Redist. System crushed and broken. 08473_ Med. Matter Pod crushed and broken. 08473_ H-77 Assassin suffers critical hit (Blast). 08473_ H-77 Assassin destroyed. 08473_ Penetrated by Slug. Map ----- +----------------------------------------------------+ | ?????????????????????????????????????????????????? | | ?????????????????????????????????????????????????? | | ?????????????????????????????????????????????????? | | ?????????????????????????????????????????????????? | | ?????????????????????????????????????????????????? | | ?????????????????????????????????????????????????? | | ?????????????????????????????????????????????????? | | ?????????????????????????????????????????????????? | | ?????????????????????????????????????????????????? | | ?????????????????????????????????????????????????? | | ?????????????????????????????????????????????????? | | ?????????????????????????????????????????????????? | | ?????????????????????????????????????????????????? | | ?????????????????????????????????????????????????? | | ?????????????????????????????????????????????????? | | ?????????????????????????????????????????????????? | | ?????????????????????????????????????????????????? | | ?????????????????????????????????????????????????? | | ?????????????????????????????????????????????????? | | ?????????????????????????????????????????????????? | | ??????????????????????#####??????????????????????? | | ??????????????????????? k%#??????????????????????? | | ????????????????????????#%#??????????????????????? | | ????????????????????????#h#??????????????????????? | | ????????????????????????#h#??????????????????????? | | ????????????????????????#@#??????????????????????? | | ????????????????????????#!#??????????????????????? | | ????????????????????????#!#??????????????????????? | | ????????????????????????#%#??????????????????????? | | ????????????????????????==#??????????????????????? | | ????????????????????????#=#????########??????????? | | ????????????????????????#!#????# #??????????? | | ????????????????????????#%#????# #??????????? | | ????????????????????????#%#????# #? ?????? | | ????????????????????????#H#????# #? #????? | | ?????????????????????####/###### #? #????? | | ?????????????????????# !!% * # ## #????? | | ?????????????????????# | # ## ###### | | ?????????????????????# """ # ## ? | | ?????????????????????# """" # !!!## ?? | | ?????????????????????# """" # !!|## ?? | | ?????????????????????# """ # !|## """ | | ?????????????????????# % # ## """" | | ?????????????????????# # ## """ | | ?????????????????????#####/######+###### """ | | ??????????????????????# !%%= % | | ??????????????????????# ==|% | | ??????????????????????# =%*%% | | ??????????????????????# = | | ??????????????????????###########+#######+######## | +----------------------------------------------------+ Best States ------------- Heat Dissipation 65 Energy Generation 37 Energy Capacity 385 Matter Stores 300 Matter Capacity 300 Sight Range 16 Terrain Scan Density 210 Cloak Strength 3 Armor Coverage 400 Resistance: KI 20 Propulsion Shielding 66 Evasion (%) 63 Targeting Accuracy 10 Target Analysis 11 Core Analysis 6 Recoil Reduction 8 Particle Charging 25 Offensive Hacking 10 Item Schematics ----------------- Adv. Treads | -7/Factory | Scanalyzed Combat Drone Bay | -6/Data Miner | Free Lgt. Regenerative Plating | -6/Data Miner | Free Enh. Flexi-carbon Leg | -6/Data Miner | Free Imp. Thermal Defense Suite | -6/Data Miner | Free Neutron Cannon | -6/Data Miner | Free Field Propulsion Array | -6/Data Miner | Free Adv. Thermal Shield | -6/Data Miner | Free Matter Neutralizer | -6/Data Miner | Free Hvy. Phase Cannon | -6/Data Miner | Free Impulse Thruster Array | -6/Data Miner | Free Cmb. Antigrav System | -6/Data Miner | Free Robot Schematics ------------------ G-50 Soldier | -6/Data Miner | Free E-15 Imp | -6/Data Miner | Free S-27 Virus | -6/Data Miner | Free B-60 Warrior | -6/Data Miner | Free Fabricated ------------ Biometal Heavy Treads | x1 | -4/Factory | Preloaded Adv. Treads | x2 | -4/Factory Alien Tech Used ----------------- None Achievements -------------- None Challenges ------------ None Game ------ Seed LinearWeldingMonowheel Manual? 0 Play Time 01:24:28 Cumulative 94.7 hours Start 2024.04.05 @ 10:31:10 End 2024.04.05 @ 11:59:30 Sessions 3 Manual Loads 0 Difficulty Rogue Special Mode None Game No. 137 Rogue 137 Adventurer 0 Explorer 0 Win Type - Total 1 Types 1/0/0/0/0/0/0/0/0 Lore% 42 Gallery% 47 Achievement% 41 Wizard Run 0 Options --------- Layout 2 ASCII 0 Keyboard 1 Movement Vi Keybinds 1 Fullscreen 1 Font 32/SmallcapsGlow Map View 50x44 Zoom Use 0% Tactical HUD 1 Map Filters NONE Filters NONE Steam 1 RUN: 3bf946f0-eea0-40f5-8a42-a6b45e598dbb